{"text_format":"1","workbook":"xlsx","n_sheets":1,"sheets":["税込価格"],"not_rendered":{"charts":0,"images":1,"macros":1,"external_links":0,"defined_names":1,"comments":0,"pivot_tables":0},"unopened":[],"bounds":{"document_bytes":16777216,"sheet_cells":100000,"rows_first":2000,"rows_last":500,"rows_between":2000,"halvings":0,"cell_chars":16384,"cell_head_chars":4096},"cells_cut":0,"cells_raw":0,"read":"whole","date_system":"1900"}

{"sheet":"税込価格","index":0,"n_rows":59,"n_cols":33,"rows_kept":59,"cut":false,"hidden":false,"merged":[[9,6,9,32],[39,28,39,33],[20,17,20,33],[18,7,18,12],[18,13,18,15],[19,7,19,12],[19,13,19,15],[20,7,20,12],[20,13,20,15],[21,7,21,12],[21,13,21,15],[13,5,13,14],[13,16,13,33],[14,5,14,14],[14,16,14,33],[24,1,24,12],[24,13,24,18],[31,1,31,12],[27,1,27,12],[28,28,28,33],[31,28,31,33],[25,28,25,33],[26,28,26,33],[28,19,28,22],[48,1,48,12],[48,13,48,18],[47,1,47,12],[22,7,22,12],[22,13,22,15],[2,24,2,33],[3,24,3,33],[22,17,22,33],[46,23,46,27],[32,19,32,22],[33,19,33,22],[41,23,41,27],[41,28,41,33],[42,13,42,18],[38,19,38,22],[35,19,35,22],[38,23,38,27],[39,23,39,27],[29,23,29,27],[29,28,29,33],[44,13,44,18],[32,28,32,33],[33,28,33,33],[34,28,34,33],[40,19,40,22],[40,23,40,27],[40,28,40,33],[52,28,52,33],[51,23,51,27],[52,23,52,27],[42,28,42,33],[43,28,43,33],[44,28,44,33],[49,23,49,27],[51,28,51,33],[48,19,48,22],[48,23,48,27],[48,28,48,33],[50,23,50,27],[49,28,49,33],[50,28,50,33],[8,6,8,10],[37,19,37,22],[37,23,37,27],[37,28,37,33],[45,28,45,33],[46,28,46,33],[39,13,39,18],[34,1,34,12],[34,13,34,18],[33,1,33,12],[33,13,33,18],[39,19,39,22],[39,1,39,12],[36,1,36,12],[36,13,36,18],[36,19,36,22],[37,1,37,12],[37,13,37,18],[38,13,38,18],[46,1,46,12],[45,1,45,12],[42,1,42,12],[44,1,44,12],[43,1,43,12],[38,28,38,33],[58,1,59,7],[58,10,59,28],[43,19,43,22],[42,19,42,22],[44,19,44,22],[50,13,50,18],[45,19,45,22],[50,1,50,12],[50,19,50,22],[49,13,49,18],[47,13,47,18],[46,13,46,18],[45,13,45,18],[49,19,49,22],[47,19,47,22],[46,19,46,22],[47,23,47,27],[54,1,56,33],[49,1,49,12],[42,23,42,27],[47,28,47,33],[43,13,43,18],[40,13,40,18],[40,1,40,12],[43,23,43,27],[44,23,44,27],[45,23,45,27],[11,5,11,18],[12,5,12,18],[41,1,41,12],[41,13,41,18],[41,19,41,22],[34,19,34,22],[32,23,32,27],[38,1,38,12],[25,23,25,27],[26,23,26,27],[27,23,27,27],[28,23,28,27],[32,1,32,12],[32,13,32,18],[34,23,34,27],[31,23,31,27],[16,1,22,4],[11,23,12,33],[26,1,26,12],[24,28,24,33],[1,11,1,22],[2,11,3,22],[4,12,4,21],[5,23,5,31],[5,5,5,16],[30,1,30,12],[30,13,30,18],[30,19,30,22],[30,23,30,27],[30,28,30,33],[5,1,5,4],[6,19,7,22],[5,19,5,22],[8,1,10,4],[11,1,12,4],[11,19,12,22],[24,19,24,22],[26,13,26,18],[26,19,26,22],[6,1,7,4],[13,1,14,4],[25,1,25,12],[4,22,4,33],[27,28,27,33],[17,10,17,15],[10,6,10,32],[35,28,35,33],[6,5,6,16],[6,23,6,31],[18,5,22,6],[36,23,36,27],[36,28,36,33],[35,23,35,27],[35,1,35,12],[35,13,35,18],[33,23,33,27],[31,13,31,18],[31,19,31,22],[25,13,25,18],[25,19,25,22],[29,1,29,12],[29,13,29,18],[29,19,29,22],[27,13,27,18],[27,19,27,22],[28,1,28,12],[28,13,28,18],[24,23,24,27]]}
[]
[null,null,null,null,null,null,null,null,null,null,null,"注文用紙"]
[null,null,null,null,null,null,null,null,null,null,null,"FAX又はお問い合わせフォーム・メールにに添付して送信ください。\nメールアドレス↓",null,null,null,null,null,null,null,null,null,null,null,null,"志水木材産業株式会社"]
[null,null,null,null,null,null,null,null,null,null,null,null,null,null,null,null,null,null,null,null,null,null,null,null,"登録番号：T7-1000-0101-7786"]
[null,null,null,null,null,null,null,null,null,null,null,null,"shop@shimizumokuzai.jp",null,null,null,null,null,null,null,null,null,{"$f":"TODAY()","v":"2024-05-13"}]
[null,"フリガナ",null,null,null,null,null,null,null,null,null,null,null,null,null,null,null,null,null,"フリガナ"]
[null,"お客様名",null,null,null,null,null,null,null,null,null,null,null,null,null,null,null,"様",null,"ご担当者名\n（法人の場合）",null,null,null,null,null,null,null,null,null,null,null,null,"様"]
[]
[null,"お届け先\nご住所",null,null,null,"〒"]
[]
[]
[null,"TEL",null,null,null,null,null,null,null,null,null,null,null,null,null,null,null,null,null,"FAX"]
[]
[null,"E-mail",null,null,null,null,null,null,null,null,null,null,null,null,null,"@"]
[]
[]
[null,"お支払い方法"]
[null,null,null,null,null,null,null,"代金引換",null,null,"（手数料が別途必要です）",null,null,null,null,null,null,"銀行振込",null,null,"八十二銀行　中津川支店　当座　２００００５２"]
[null,null,null,null,null,"代引き総額　　",null,"　　　　　　　～9,999円",null,null,null,null,null,"　330円",null,null,null,"口座名義　志水木材産業株式会社"]
[null,null,null,null,null,null,null,"　　　　　　　10,000円～29,999円",null,null,null,null,null,"　440円"]
[null,null,null,null,null,null,null,"30,000円～54,999円",null,null,null,null,null,"　660円",null,null,null,"振込手数料はお客様でご負担下さい。振込確認後の発送となります。"]
[null,null,null,null,null,null,null,"55,000円～99,999円",null,null,null,null,null,"　880円"]
[null,null,null,null,null,null,null,"100,000円～300,000円",null,null,null,null,null,"　1,320円",null,null,null,"どちらかのお支払い方法にチェックをお願い致します。"]
[]
[null,"商品名",null,null,null,null,null,null,null,null,null,null,null,"価格（税込み）",null,null,null,null,null,"最小注文数",null,null,null,"数量",null,null,null,null,"金額"]
[null,"ラ式巣枠　組立キット",null,null,null,null,null,null,null,null,null,null,null,121,null,null,null,null,null,100,null,null,null,null,null,null,null,null,{"$f":"N26*X26","v":0}]
[null,"ホフマン式巣枠　組立キット",null,null,null,null,null,null,null,null,null,null,null,145,null,null,null,null,null,100,null,null,null,null,null,null,null,null,{"$f":"N27*X27","v":0}]
[null,"ラ式巣枠用　補強金具　（200枚／セット）",null,null,null,null,null,null,null,null,null,null,null,1450,null,null,null,null,null,"１セット（200枚）",null,null,null,null,null,null,null,null,{"$f":"N28*X28","v":0}]
[null,"単箱　組立キット",null,null,null,null,null,null,null,null,null,null,null,5800,null,null,null,null,null,3,null,null,null,null,null,null,null,null,0]
[null,"単箱　組立キット（蓋に空気穴4カ所）",null,null,null,null,null,null,null,null,null,null,null,6300,null,null,null,null,null,3,null,null,null,null,null,null,null,null,{"$f":"N30*X30","v":0}]
[null,"単箱　組立キット（蓋　全面金網）",null,null,null,null,null,null,null,null,null,null,null,6050,null,null,null,null,null,3,null,null,null,null,null,null,null,null,0]
[null,"継箱　（窓有り）組立キット",null,null,null,null,null,null,null,null,null,null,null,3630,null,null,null,null,null,5,null,null,null,null,null,null,null,null,0]
[null,"継箱　（窓無し）組立キット",null,null,null,null,null,null,null,null,null,null,null,3340,null,null,null,null,null,5,null,null,null,null,null,null,null,null,0]
[null,"７枚箱　組立キット",null,null,null,null,null,null,null,null,null,null,null,3500,null,null,null,null,null,5,null,null,null,null,null,null,null,null,0]
[null,"８枚箱　組立キット",null,null,null,null,null,null,null,null,null,null,null,4480,null,null,null,null,null,5,null,null,null,null,null,null,null,null,0]
[null,"ブリキ（単箱の蓋に必要です）",null,null,null,null,null,null,null,null,null,null,null,200,null,null,null,null,null,null,null,null,null,null,null,null,null,null,0]
[null,"窓用金網　（２枚１セット、単箱及び継箱窓有りに必要です）",null,null,null,null,null,null,null,null,null,null,null,400,null,null,null,null,null,null,null,null,null,null,null,null,null,null,{"$f":"N37*X37","v":0}]
[null,"蓋の空気穴用金網　（4枚１セット）",null,null,null,null,null,null,null,null,null,null,null,280,null,null,null,null,null,null,null,null,null,null,null,null,null,null,{"$f":"N38*X38","v":0}]
[null,"蓋の全面金網用金網　（1枚）",null,null,null,null,null,null,null,null,null,null,null,1100,null,null,null,null,null,null,null,null,null,null,null,null,null,null,0]
[null,"単箱　完成品",null,null,null,null,null,null,null,null,null,null,null,7860,null,null,null,null,null,null,null,null,null,null,null,null,null,null,0]
[null,"単箱　完成品（蓋に空気穴4カ所）",null,null,null,null,null,null,null,null,null,null,null,8870,null,null,null,null,null,null,null,null,null,null,null,null,null,null,{"$f":"N41*X41","v":0}]
[null,"単箱　完成品（蓋　全面金網）",null,null,null,null,null,null,null,null,null,null,null,9810,null,null,null,null,null,null,null,null,null,null,null,null,null,null,0]
[null,"継箱　（窓有り）　完成品",null,null,null,null,null,null,null,null,null,null,null,5120,null,null,null,null,null,null,null,null,null,null,null,null,null,null,0]
[null,"継箱　（窓無し）　完成品",null,null,null,null,null,null,null,null,null,null,null,4430,null,null,null,null,null,null,null,null,null,null,null,null,null,null,0]
[null,"７枚箱　完成品",null,null,null,null,null,null,null,null,null,null,null,5240,null,null,null,null,null,null,null,null,null,null,null,null,null,null,0]
[null,"８枚箱　完成品",null,null,null,null,null,null,null,null,null,null,null,6210,null,null,null,null,null,null,null,null,null,null,null,null,null,null,0]
[null,"給餌器　完成品",null,null,null,null,null,null,null,null,null,null,null,1820,null,null,null,null,null,null,null,null,null,null,null,null,null,null,0]
[null,"分割板　組立キット（補強金具無し）",null,null,null,null,null,null,null,null,null,null,null,550,null,null,null,null,null,null,null,null,null,null,null,null,null,null,0]
[null,"王台養成枠　組立キット",null,null,null,null,null,null,null,null,null,null,null,250,null,null,null,null,null,null,null,null,null,null,null,null,null,null,{"$f":"N49*X49","v":0}]
[null,"送料",null,null,null,null,null,null,null,null,null,null,null,null,null,null,null,null,null,null,null,null,null,null,null,null,null,null,{"$f":"N50*X50","v":0}]
[null,"代引手数料",null,null,null,null,null,null,null,null,null,null,null,null,null,null,null,null,null,null,null,null,null,1,null,null,null,null,{"$f":"N51*X51","v":0}]
[null,null,null,null,null,null,null,null,null,null,null,null,null,null,null,null,null,null,null,null,null,null,null,"税込合計金額",null,null,null,null,{"$f":"SUM(AC26:AH51)","v":0}]
[null,null,null,null,null,null,null,null,null,null,null,null,null,null,null,null,null,null,null,null,null,null,null,"（内消費税10％）",null,null,null,null,{"$f":"AC52/1.1*0.1","v":0}]
[]
[]
[]
[]
[]
[null,null,null,null,null,null,null,null,null,null,"TEL 0264-58-2011　FAX 0264-58-2707"]